Cogmind - Beta 11.1 @@@ ROGUE MODE // 2022.05.13 @ 22:20:29 Player: Bunch Result: Destroyed by C-17 Slicer with Blade Saw Performance ------------- Evolutions (2) 1000 Regions Visited (6) 1200 Robots Destroyed (29) 145 Value Destroyed (592) 592 Prototype IDs (0) 0 Alien Tech Used (0) 0 Bonus (609) 609 TOTAL SCORE: 3546 Bonus ------- Follower Combat Kills 109 Entered Garrisons 200 Aligned with FarCom 300 Cogmind --------- Core Integrity 0/550 Matter 263/300 Energy 100/100 System Corruption 0% Temperature Cool (0) Movement Core (50) Location -8/Garrison Parts ------- > --- POWER (3) -------- (None) > --- PROPULSION (2) --- (None) > --- UTILITY (3) ------ (None) > --- WEAPON (3) ------- (None) > --- INVENTORY (5) ---- Propulsion Shielding Peak State ------------ > --- POWER ------------ Backup Power I Nuclear Core > --- PROPULSION ------- Armored Treads > --- UTILITY ---------- Improved Signal Interpreter Seismic Detector ECM Suite > --- WEAPON ----------- Field Laser Flak Cannon Makeshift Hammer > --- INVENTORY -------- Propulsion Shielding [Rating: 22] Favorites ----------- Power Nuclear Core Engine Backup Power I Power Core Nuclear Core Propulsion Armored Treads Treads Armored Treads Leg Aluminum Leg Hover Unit Backup Propulsion I Flight Unit VTOL Module Utility Seismic Detector Device Seismic Detector Storage Small Storage Unit Processor Improved Signal Interpreter Protection Light Armor Plating Weapon Field Laser Energy Gun Field Laser Ballistic Gun Light Assault Rifle Ballistic Cannon Flak Cannon Impact Weapon Makeshift Hammer Build | -11 -10 -10 -10 -9 -8 -8 ------- Run | Scr Mat Min Exi Min Mat Gar Slots Evolved 4 | . . . . . 4 . Power 2 | . . . . . 2 . Propulsion . | . . . . . . . Utility 1 | . . . . . 1 . Weapon 1 | . . . . . 1 . Parts Attached 27 | 5 11 7 . . 3 1 Power 3 | . 1 1 . . . 1 Engine 2 | . 1 . . . . 1 Core 1 | . . 1 . . . . Reactor . | . . . . . . . Propulsion 9 | 2 5 1 . . 1 . Treads 2 | . . 1 . . 1 . Leg 2 | 2 . . . . . . Wheel . | . . . . . . . Hover . | . . . . . . . Flight 5 | . 5 . . . . . Utility 6 | 1 2 2 . . 1 . Device 2 | . 1 . . . 1 . Storage 1 | 1 . . . . . . Processor 1 | . . 1 . . . . Hackware . | . . . . . . . Protection 2 | . 1 1 . . . . Artifact . | . . . . . . . Weapon 9 | 2 3 3 . . 1 . Energy Gun 5 | . 3 2 . . . . Energy Cannon . | . . . . . . . Ballistic Gun 2 | 2 . . . . . . Ballistic Cannon 1 | . . 1 . . . . Launcher . | . . . . . . . Special Weapon . | . . . . . . . Impact Weapon 1 | . . . . . 1 . Slashing Weapon . | . . . . . . . Piercing Weapon . | . . . . . . . Special Melee Weapon . | . . . . . . . Unidentified Prototypes . | . . . . . . . Parts Lost 9 | . 2 . . . . 7 Power 2 | . . . . . . 2 Propulsion 2 | . 2 . . . . . Utility 2 | . . . . . . 2 Weapon 3 | . . . . . . 3 Highest Loss Streak 6 | . 2 . . . . 6 To Critical Strikes . | . . . . . . . Average Slot Usage (%) 80 | . 78 84 85 85 74 75 Engine 1 | . . 1 . . 3 6 Core 9 | . . 12 14 14 9 8 Treads 9 | . . 12 14 14 8 8 Flight 4 | . 22 2 . . . . Device 14 | . 9 14 14 14 17 17 Processor 9 | . . 8 14 14 9 8 Protection 2 | . 9 3 . . . . Energy Gun 14 | . 19 19 14 14 9 8 Ballistic Gun 1 | . 8 . . . . . Ballistic Cannon 9 | . . 8 14 14 9 8 Impact Weapon 2 | . . . . . 8 8 Naked Turns 3 | . . . . . . 3 Heaviest Build 25 | 7 12 17 17 17 23 25 Greatest Support 20 | 20 20 20 20 20 20 20 Greatest Overweight (x) 2 | . 2 . . . 1 1 Average Overweight (x) . | . . . . . . . Largest Inventory Capacity 8 | 8 8 5 5 5 5 5 Average Capacity 5 | 6 6 5 5 5 5 5 Most Carried 5 | 2 4 5 3 3 3 2 Average Carried 1 | . . 2 3 3 1 1 Final Capacity 8 | 8 5 5 5 5 5 5 Final Carried 3 | . 1 3 3 3 1 1 Class Distribution -------------------- 86% | Mutant 13% | Sprinter Dominant Class ---------------- Sprinter | -10/Materials Mutant | -10/Mines Mutant | -10/Exiles Mutant | -9/Mines Mutant | -8/Materials Mutant | -8/Garrison Resources | -11 -10 -10 -10 -9 -8 -8 ----------- Run | Scr Mat Min Exi Min Mat Gar Matter Collected 634 | 228 88 200 . . 66 52 Remotely . | . . . . . . . Salvage Created 689 | . 102 241 . . 272 74 Parts 32 | . 8 11 . . 4 9 Haulers Intercepted . | . . . . . . . Recyclers Shooed 2 | . . 1 . . 1 . Parts Field Recycled . | . . . . . . . Retrieved Matter . | . . . . . . . Parts Self-Destructed . | . . . . . . . Prevented . | . . . . . . . Kills | -11 -10 -10 -10 -9 -8 -8 ------- Run | Scr Mat Min Exi Min Mat Gar Combat Hostiles Destroyed 23 | . 6 4 . . 6 7 Guns 11 | . 6 2 . . . 3 Cannons 8 | . . 2 . . 2 4 Classes Destroyed 9 | . 1 5 . . 3 . Worker 1 | . . 1 . . . . Builder 2 | . . 1 . . 1 . Tunneler 1 | . . 1 . . . . Recycler 1 | . . 1 . . . . Mechanic 1 | . . . . . 1 . Swarmer 14 | . 6 . . . 1 7 Grunt 7 | . . 4 . . 3 . Duelist 1 | . . . . . 1 . Sentry 1 | . . . . . 1 . Best Kill Streak 6 | . 6 2 . . 3 5 Combat Bots Only 6 | . 6 2 . . 2 5 Max Kills in Single Turn 1 | . 1 1 . . 1 1 Gunslinging . | . . . . . . . Exploded . | . . . . . . . Melee . | . . . . . . . Uniques/NPCs Destroyed . | . . . . . . . Combat | -11 -10 -10 -10 -9 -8 -8 -------- Run | Scr Mat Min Exi Min Mat Gar Damage Taken 1851 | . 410 163 . . 75 1203 Core 742 | . 179 13 . . 10 540 Absorbed by Shields . | . . . . . . . Regen/Repaired (Parts) 256 | . . . . . 256 . Core Remaining (%) 61 | 100 . . . 23 . . Volleys Fired 78 | . 18 35 . . 6 19 Largest 2 | . 2 2 . . 2 2 Hottest 126 | . 40 126 . . 107 107 Shots Fired 143 | . 36 62 . . 12 33 Gun 106 | . 36 50 . . 6 14 Cannon 37 | . . 12 . . 6 19 Launcher . | . . . . . . . Special . | . . . . . . . Kinetic 73 | . 36 12 . . 6 19 Thermal 70 | . . 50 . . 6 14 Explosive . | . . . . . . . Electromagnetic . | . . . . . . . Robot Hit Streak 7 | . 4 7 . . 2 4 Robot Miss Streak 18 | . 3 3 . . 6 18 Penetration Max . | . . . . . . . Secondary Targets 3 | . 3 . . . . . Max Gunslinging Chain 1 | . 1 . . . . . Shots Hit Robots 80 | . 20 34 . . 10 16 Core Hits 44 | . 10 15 . 1 5 13 Critical Kills . | . . . . . . . Critical Parts Destroyed 3 | . 1 . . . 2 . Critical Strikes 7 | . 1 4 . . 2 . Burn 4 | . . 4 . . . . Destroy 1 | . 1 . . . . . Smash 2 | . . . . . 2 . Melee Attacks 14 | . . . . . 10 4 Impact 14 | . . . . . 10 4 Slashing . | . . . . . . . Piercing . | . . . . . . . Sneak Attacks 3 | . . . . . 3 . Combat Hostiles 1 | . . . . . 1 . Follow-up Attacks . | . . . . . . . Damage Inflicted 1444 | . 194 564 . 6 412 268 Guns 724 | . 194 426 . . . 104 Cannons 339 | . . 122 . . 53 164 Explosions . | . . . . . . . Melee 359 | . . . . . 359 . Ramming 22 | . . 16 . 6 . . Kinetic 533 | . 194 122 . . 53 164 Thermal 530 | . . 426 . . . 104 Explosive . | . . . . . . . Electromagnetic . | . . . . . . . Impact 359 | . . . . . 359 . Slashing . | . . . . . . . Piercing . | . . . . . . . Highest Corruption . | . . . . . . . Average Corruption . | . . . . . . . Corruption Purged . | . . . . . . . Corruption Blocked . | . . . . . . . Overload Shots . | . . . . . . . Overflow Damage 180 | . . . . . 180 . Projectiles . | . . . . . . . Explosions . | . . . . . . . Melee 180 | . . . . . 180 . Knockbacks 13 | . . 2 . . 5 6 Impact 4 | . . . . . 4 . Kinetic 9 | . . 2 . . 1 6 Secondary . | . . . . . . . Self-Inflicted Damage . | . . . . . . . Shots . | . . . . . . . Rammed 5 | . . 4 . 1 . . Targets Rammed 5 | . . 4 . 1 . . Kicked . | . . . . . . . Crushed . | . . . . . . . Highest Temperature 468 | . . 468 . . 99 264 Average Temperature 121 | . . 138 . . 40 97 Received Heat Transfer 120 | . . 84 . . 36 . Effects 6 | . . 3 . . . 3 Shutdowns 1 | . . 1 . . . . Interference 3 | . . . . . . 3 Short Circuit 1 | . . 1 . . . . Damage (minor) 1 | . . 1 . . . . Siege Activations . | . . . . . . . Robots Corrupted . | . . . . . . . Combat Hostiles . | . . . . . . . Parts Fried 7 | . . . . . 7 . Impact Corruptions 10 | . . . . . 10 . Robots Melted . | . . . . . . . Combat Hostiles . | . . . . . . . Parts Melted 5 | . . 4 . . . 1 Heat Transferred 1554 | . . 1332 . . . 222 Parts Sabotaged . | . . . . . . . Parts Stolen . | . . . . . . . Parts Stripped . | . . . . . . . Power Chain Reactions . | . . . . . . . Missiles Intercepted . | . . . . . . . Alert | -11 -10 -10 -10 -9 -8 -8 ------- Run | Scr Mat Min Exi Min Mat Gar Peak Influence 247 | . 150 109 . 22 236 247 Initial 8 | . . 5 . . 8 2 Average 56 | . 42 36 . 3 95 84 Maximum Alert Level 1 | . . . . . 1 1 Low Security (%) 97 | 100 100 100 . 100 93 92 Level 1 2 | . . . . . 6 7 Level 2 . | . . . . . . . Level 3 . | . . . . . . . Level 4 . | . . . . . . . Level 5 . | . . . . . . . High Security . | . . . . . . . Max Security . | . . . . . . . Squads Dispatched 2 | . 1 . . . 1 . Investigation 1 | . 1 . . . . . Extermination . | . . . . . . . Reinforcement 1 | . . . . . 1 . Assault . | . . . . . . . Garrison . | . . . . . . . Intercept . | . . . . . . . Searches Triggered . | . . . . . . . Construction Impeded . | . . . . . . . Haulers Reinforced . | . . . . . . . Active Scanning Responses . | . . . . . . . Cargo Convoy Interrupts . | . . . . . . . Stealth | -11 -10 -10 -10 -9 -8 -8 --------- Run | Scr Mat Min Exi Min Mat Gar Distress Signals 1 | . . . . 1 . . Communications Jammed . | . . . . . . . Distress Signals . | . . . . . . . Times Spotted 38 | . 9 6 . . 9 14 Peak Tracking Total 6 | . 5 2 . 1 2 6 Tactical Retreats 4 | . . 1 . . 2 1 Traps | -11 -10 -10 -10 -9 -8 -8 ------- Run | Scr Mat Min Exi Min Mat Gar Traps Triggered 3 | . . 1 . . . 2 Indirectly . | . . . . . . . Trap Hack Attempts . | . . . . . . . Triggered . | . . . . . . . Disarmed . | . . . . . . . Reprogrammed . | . . . . . . . Reused . | . . . . . . . Traps Extracted . | . . . . . . . Installed . | . . . . . . . Triggered . | . . . . . . . Machines | -11 -10 -10 -10 -9 -8 -8 ---------- Run | Scr Mat Min Exi Min Mat Gar Machines Disabled 2 | . . 1 . . 1 . Max in Single Turn 1 | . . 1 . . 1 . Machines Sabotaged . | . . . . . . . Garrisons Compromised . | . . . . . . . Overloaded Fab Kills . | . . . . . . . Hacking | -11 -10 -10 -10 -9 -8 -8 --------- Run | Scr Mat Min Exi Min Mat Gar Machines Accessed 9 | . 2 1 4 . 2 . Terminals 2 | . 2 . . . . . Fabricators . | . . . . . . . Repair Stations 1 | . . . . . 1 . Recycling Units . | . . . . . . . Scanalyzers . | . . . . . . . Garrison Access 1 | . . . . . 1 . Total Hacks 26 | . 7 1 13 . 5 . Successful 21 | . 3 1 13 . 4 . Failed 5 | . 4 . . . 1 . Catastrophic . | . . . . . . . Database Lockouts . | . . . . . . . Manual . | . . . . . . . Terminals 7 | . 7 . . . . . Fabricators . | . . . . . . . Repair Stations 4 | . . . . . 4 . Recycling Units . | . . . . . . . Scanalyzers . | . . . . . . . Garrison Access 1 | . . . . . 1 . Terminal Hacks 17 | . 3 1 13 . . . Record 13 | . . . 13 . . . Open Door 1 | . . 1 . . . . Alert Level 1 | . 1 . . . . . Dispatch Records 1 | . 1 . . . . . Zone Layout 1 | . 1 . . . . . Fabricator Hacks . | . . . . . . . Repair Station Hacks 3 | . . . . . 3 . Scan Component 1 | . . . . . 1 . Repair 1 | . . . . . 1 . Refit 1 | . . . . . 1 . Recycling Unit Hacks . | . . . . . . . Scanalyzer . | . . . . . . . Garrison Access Hacks 1 | . . . . . 1 . Unlock Access 1 | . . . . . 1 . Unauthorized Hacks . | . . . . . . . Terminals . | . . . . . . . Fabricators . | . . . . . . . Repair Stations . | . . . . . . . Recycling Units . | . . . . . . . Scanalyzers . | . . . . . . . Garrison Access . | . . . . . . . Data Cores Recovered . | . . . . . . . Used . | . . . . . . . Hacking Detections 2 | . 1 . . . 1 . Full Trace Events 2 | . 1 . . . 1 . Feedback Events . | . . . . . . . Feedback Blocked . | . . . . . . . Robot Schematics Acquired . | . . . . . . . Robots Built . | . . . . . . . Authchips . | . . . . . . . Time . | . . . . . . . Total Robot Build Rating . | . . . . . . . Part Schematics Acquired . | . . . . . . . Parts Built . | . . . . . . . Authchips . | . . . . . . . Time . | . . . . . . . Total Part Build Rating . | . . . . . . . Parts Repaired 1 | . . . . . 1 . Time 38 | . . . . . 38 . Parts Recycled . | . . . . . . . Recycled Matter . | . . . . . . . Retrieved Matter . | . . . . . . . Retrieved Components . | . . . . . . . Parts Scanalyzed . | . . . . . . . Part Schematics Acquired . | . . . . . . . Parts Damaged . | . . . . . . . Bothacking | -11 -10 -10 -10 -9 -8 -8 ------------ Run | Scr Mat Min Exi Min Mat Gar Used RIF Installer . | . . . . . . . Robots Hacked . | . . . . . . . Non-combat . | . . . . . . . Combat . | . . . . . . . Robot Hacks Applied . | . . . . . . . Relay Couplers Released . | . . . . . . . Fabnet Peak Effective % . | . . . . . . . Robots Rewired . | . . . . . . . Allies Hacked . | . . . . . . . Hacks Repelled . | . . . . . . . Allies | -11 -10 -10 -10 -9 -8 -8 -------- Run | Scr Mat Min Exi Min Mat Gar Total Allies 3 | . . 3 . . . . Largest Group 3 | . . 3 2 2 2 . Highest-Rated Group 40 | . . 40 32 32 32 . Highest-Rated Ally 16 | . . 16 16 16 16 . Total Orders 2 | . . . . . 2 . ROAM 2 | . . . . . 2 . Ally Attacks 24 | . . 9 . 4 11 . Total Damage 226 | . . 104 . 15 107 . Kills 5 | . . 1 . 1 3 . Allies Corrupted . | . . . . . . . Allies Melted . | . . . . . . . Intel | -11 -10 -10 -10 -9 -8 -8 ------- Run | Scr Mat Min Exi Min Mat Gar Robot Analysis Total . | . . . . . . . Derelict Logs Recovered 2 | . . 2 . . . . Drone Launches . | . . . . . . . Drone Recoveries . | . . . . . . . Exploration | -11 -10 -10 -10 -9 -8 -8 ------------- Run | Scr Mat Min Exi Min Mat Gar Turns Passed 5629 | 116 837 1373 1457 235 1230 381 Spaces Moved 2832 | 83 486 971 852 124 198 118 Core 38 | 15 22 . . . . 1 Treads 1950 | . . 659 852 124 198 117 Legs 144 | 68 76 . . . . . Wheels . | . . . . . . . Hover . | . . . . . . . Flight 700 | . 388 312 . . . . Fastest Speed 32 | 50 32 32 170 170 170 100 Average Speed 141 | 107 55 125 170 170 244 247 Slowest Speed 250 | 120 150 170 170 170 250 250 Overloaded Moves . | . . . . . . . Propulsion Burnouts . | . . . . . . . Robots Hopped 3 | . 2 1 . . . . Cave-ins Triggered . | . . . . . . . Exploration Rate (%) 43 | 5 51 98 93 24 13 19 Regions Visited 6 Branch Regions 3 Pre-discovered Areas 3 | . . 2 1 . . . Known Exits Taken 4 | . . 1 1 1 1 . Unknown Exits Taken 2 | 1 1 . . . . . Scrap Searched 2 | . . 2 . . . . Spaces Dug . | . . . . . . . Terrain Destroyed . | . . . . . . . Melee . | . . . . . . . Projectile . | . . . . . . . AOE . | . . . . . . . Terrain Rammed . | . . . . . . . Walls Destroyed . | . . . . . . . Machines Disabled . | . . . . . . . Actions | -11 -10 -10 -10 -9 -8 -8 --------- Run | Scr Mat Min Exi Min Mat Gar Total 4301 | 110 1027 1062 861 148 923 170 Wait 1305 | 18 495 31 10 24 704 23 Move 2820 | 82 481 968 851 123 197 118 Hop 3 | . 2 1 . . . . Pick Up 27 | 5 11 9 . . 1 1 Fast Attach . | . . . . . . . Attach 26 | 5 10 7 . . 3 1 Detach 2 | . 2 . . . . . Swap 1 | . 1 . . . . . Drop 16 | . 7 7 . . 2 . Fire 78 | . 18 35 . . 6 19 Melee 14 | . . . . . 10 4 Ram . | . . . . . . . Kick . | . . . . . . . Crush 5 | . . 4 . 1 . . Escape Stasis 4 | . . . . . . 4 Rewire . | . . . . . . . Trap . | . . . . . . . Miscellaneous . | . . . . . . . Route ------- -11/Scrapyard -10/Materials (discovered 3 exits: *Mat x2 / *Min) -10/Mines (discovered 3 exits: *Mat x2 / *Exi) -10/Exiles (discovered 2 exits: *Min x2) -9/Mines -8/Materials -8/Garrison History --------- Turn | Location | Event 8 | -11/Scrapyard | Discovered new exit (range 15) 117 | -11/Scrapyard | Entered Materials 286 | -10/Materials | Core integrity fell below 50% 353 | -10/Materials | Discovered new exit (range 9) 716 | -10/Materials | Build established: Sprinter 909 | -10/Materials | Discovered new exit (range 3) 926 | -10/Materials | Discovered new exit (range 8) 954 | -10/Materials | Entered Mines 961 | -10/Mines | Learned location of Mines (-9) 981 | -10/Mines | Learned location of Zion (-7) 994 | -10/Mines | A weapon hastily lodged in a ceiling crevice suddenly fell to the ground 1009 | -10/Mines | Discovered new exit (range 8) 1089 | -10/Mines | Met a Derelict who couldn't figure out how to use a Trap Extractor 1395 | -10/Mines | Build established: Mutant 1612 | -10/Mines | Identified exit to Materials 1949 | -10/Mines | Assisted by bots powering up and referring to "LRC-V3" 2108 | -10/Mines | Discovered exit to Materials (range 5) 2315 | -10/Mines | Deemed a non-threat by the Exiles lab entrance 2317 | -10/Mines | Discovered new exit (range 5) 2324 | -10/Mines | Identified exit to Exiles 2327 | -10/Mines | Entered Exiles 2327 | -10/Exiles | Accompanied by 2 allies 2355 | -10/Exiles | Discovered new exit (range 15) 2377 | -10/Exiles | Identified exit to Mines 2416 | -10/Exiles | Met 8R-AWN 2470 | -10/Exiles | Met EX-HEX 2666 | -10/Exiles | Met EX-DEC 2737 | -10/Exiles | Visited The Gauntlet 3050 | -10/Exiles | Discovered exit to Mines (range 14) 3259 | -10/Exiles | Met EX-BIN 3653 | -10/Exiles | Aligned with FarCom system 3655 | -10/Exiles | Given EX-Vault access code 3784 | -10/Exiles | Entered Mines 3784 | -9/Mines | Accompanied by 2 allies 3825 | -9/Mines | Found a hidden stash of uninstalled traps 3886 | -9/Mines | Discovered new exit (range 10) 3905 | -9/Mines | Identified exit to Materials 4019 | -9/Mines | Entered Materials 4019 | -8/Materials | Accompanied by 2 allies 4019 | -8/Materials | Evolved 4 slots: Power x2, Utility x1, Weapon x1 4817 | -8/Materials | Repaired Arm. Treads 5241 | -8/Materials | Identified exit to Garrison 5249 | -8/Materials | Entered Garrison 5412 | -8/Garrison | Triggered checkpoint 5602 | -8/Garrison | Triggered checkpoint 5618 | -8/Garrison | Core integrity fell below 50% 5628 | -8/Garrison | Core integrity fell below 20% 5630 | -8/Garrison | Destroyed by C-17 Slicer with Blade Saw Last Messages --------------- 05569_ Stasis field depleted. 05569_ Triggered Stasis Trap. 05569_ A bubble of rippling energy engulfs the area. 05569_ Field strength at 70. 05572_ Field strength at 40. 05573_ Field strength at 10. 05574_ Stasis field depleted. 05591_ S-10 Pest destroyed. 05604_ C-17 Slicer knocked back. 05604_ S-10 Pest destroyed. 05605_ S-10 Pest unfolds itself. 05605_ Flak Cannon destroyed. 05607_ Lgt. Ion Engine severed. 05608_ Seismic Detector destroyed. 05610_ Field Laser destroyed. 05610_ Arm. Treads severed. 05611_ Nuclear Core destroyed. 05621_ ECM Suite destroyed. 05624_ Mak. Hammer destroyed. 05627_ Imp. Signal Interpreter severed. Map ----- +----------------------------------------------------+ | ?????????????????????????# #???????????????????? | | ?????????????????????????# #???????????????????? | | ?????????????????????????# #???????????????????? | | ?????????????????????????# #???????????????????? | | ?????????????????????????# #???????????????????? | | ?????????????????????????# #???????????????????? | | ?????????????????????????# #???????????????????? | | ?????????????????????????# #???????????????????? | | ?????????????????????????# #???????????????????? | | ?????????????????????????# #???????????????????? | | ?????????????????????????# #???????????????????? | | ?????????????????????????# #???????????????????? | | ?????####????????????????# #???????????????????? | | ????##!!################## #???????????????????? | | ????#! #???????????????????? | | ????#! ## #???????????????????? | | ????##!!####### ######### #???????????????????? | | ?????####???### ###?????# #???????????????????? | | ?????????# ## = #"#?????# #???????????????????? | | ?????????#=%+[[ "#?????# #???????????????????? | | ?????????####= "#?????# ^^#???????????????????? | | ????????????# "#?????# ^#????#??????????????? | | ????????????#= = #"#?????# #### #### ## ??????? | | ????????????### ###?????# s ?????? | | ??????????????############c s%= ?????? | | ???????????????# c@c * s% ?????? | | ?????????????????#################### #????????? | | ?????????????????????????????????????????????????? | | ???????????????????????????????????s?????????????? | | ???????????????????????????????????s?????????????? | | ???????????????????????????????????s?????????????? | | ???????????????????????????????????s?????????????? | | ?????????????????????????????????????????????????? | | ?????????????????????????????????????????????????? | | ?????????????????????????????????????????????????? | | ?????????????????????????????????????????????????? | | ?????????????????????????????????????????????????? | | ?????????????????????????????????????????????????? | | ?????????????????????????????????????????????????? | | ?????????????????????????????????????????????????? | | ?????????????????????????????????????????????????? | | ?????????????????????????????????????????????????? | | ?????????????????????????????????????????????????? | | ?????????????????????????????????????????????????? | | ?????????????????????????????????????????????????? | | ?????????????????????????????????????????????????? | | ?????????????????????????????????????????????????? | | ?????????????????????????????????????????????????? | | ?????????????????????????????????????????????????? | | ?????????????????????????????????????????????????? | +----------------------------------------------------+ Best States ------------- Heat Dissipation 31 Energy Generation 19 Energy Capacity 265 Matter Stores 300 Matter Capacity 300 Sight Range 16 Terrain Scan Density 10 ECM Strength 1 Armor Coverage 150 Evasion (%) 63 Recoil Reduction 1 Item Schematics ----------------- None Robot Schematics ------------------ None Fabricated ------------ Nothing Alien Tech Used ----------------- None Achievements -------------- Librarian Tourist Challenges ------------ None Game ------ Seed GyrokineticHelicalStorm Manual? 0 Play Time 00:50:12 Cumulative 8.5 hours Start 2022.05.13 @ 21:04:06 End 2022.05.13 @ 22:20:29 Sessions 1 Manual Loads 0 Difficulty Rogue Special Mode None Game No. 13 Rogue 8 Adventurer 5 Explorer 0 Win Type - Total 0 Types 0/0/0/0/0/0/0/0/0 Lore% 6 Gallery% 12 Achievement% 9 Wizard Run 0 Options --------- ASCII 0 Keyboard 0 Movement Numpad Keybinds 0 Fullscreen 0 Font 16/Proggy Map View 76x50 Tactical HUD 1 Map Filters NONE Filters NONE Steam 1 RUN: 68f3e9bc-ff50-491c-9734-8138c134cadc